fUST/lending_fUST_20260303
["ID","MTS","AMOUNT","RATE_DAILY","PERIOD"]
[407199765,1772472639861,-188.0,0.00013553,2]
[407199767,1772472639870,-176.493,0.0001356,2]
[407199769,1772472639880,-15979.84996184,0.00013561,2]
[407199771,1772472639893,-2776.49837149,0.00013561,2]
[407199773,1772472639904,-151.0,0.00013561,2]
[407199775,1772472639914,-151.0,0.00013561,2]
[407199778,1772472639924,-2683494.14093916,0.00013564,2]
[407199780,1772472639934,-158.2928285,0.00013598,2]
[407199782,1772472639944,-2455.57768073,0.000136,2]
[407199784,1772472639953,-695.0,0.00013657,2]
[407199786,1772472639964,-2185.0,0.00013664,2]
[407199788,1772472639973,-638.0,0.00013664,2]
[407199790,1772472639983,-1388.0,0.00013664,2]
[407199792,1772472639993,-432.0,0.00013664,2]
[407199794,1772472640002,-730.0,0.00013664,2]
[407199796,1772472640011,-300.0,0.00013673,2]
[407199798,1772472640021,-151.0,0.00013698,2]
[407199800,1772472640031,-500.0,0.00013698,2]
[407199802,1772472640041,-206.83777627,0.00013698,2]
[407199804,1772472640051,-236.38603002,0.00013698,2]
[407199806,1772472640060,-500.0,0.00013698,2]
[407199808,1772472640072,-500.0,0.00013698,2]
[407199810,1772472640083,-1697.43,0.00013698,2]
[407199812,1772472640092,-998.68,0.00013698,2]
[407199814,1772472640102,-522.24,0.00013698,2]
[407199816,1772472640111,-500.0,0.00013698,2]
[407199818,1772472640121,-500.0,0.00013698,2]
[407199820,1772472640131,-500.0,0.00013698,2]
[407199822,1772472640143,-678.31,0.00013698,2]
[407199824,1772472640152,-722.37,0.00013698,2]
[407199826,1772472640162,-500.0,0.00013698,2]
[407199828,1772472640171,-500.0,0.00013698,2]
[407199830,1772472640182,-500.0,0.00013698,2]
[407199832,1772472640191,-500.0,0.00013698,2]
[407199834,1772472640201,-160.685619,0.00013698,2]
[407199836,1772472640211,-160.685619,0.00013698,2]
[407199838,1772472640220,-160.685619,0.00013698,2]
[407199840,1772472640230,-160.685619,0.00013698,2]
[407199842,1772472640239,-160.685619,0.00013698,2]
[407199844,1772472640249,-160.685619,0.00013698,2]
[407199846,1772472640258,-160.685619,0.00013698,2]
[407199848,1772472640268,-160.685619,0.00013698,2]
[407199850,1772472640277,-160.685619,0.00013698,2]
[407199852,1772472640287,-160.685619,0.00013698,2]
[407199854,1772472640297,-160.685619,0.00013698,2]
[407199858,1772472640307,-497.22622002,0.00013698,2]
[407199861,1772472640316,-500.0,0.00013698,2]
[407199864,1772472640326,-2489.5,0.00013698,2]
[407199866,1772472640336,-500.0,0.00013698,2]
[407199868,1772472640346,-3626.57,0.00013698,2]
[407199870,1772472640355,-869.93,0.00013698,2]
[407199872,1772472640365,-571.86489838,0.00013698,2]
[407199874,1772472640375,-1598.95,0.00013698,2]
[407199876,1772472640383,-2005.72,0.00013698,2]
[407199878,1772472640392,-500.0,0.00013698,2]
[407199880,1772472640402,-500.0,0.00013698,2]
[407199882,1772472640412,-500.0,0.00013698,2]
[407199884,1772472640422,-500.0,0.00013698,2]
[407199886,1772472640432,-500.0,0.00013698,2]
[407199888,1772472640442,-500.0,0.00013698,2]
[407199890,1772472640451,-577.28,0.00013698,2]
[407199892,1772472640460,-1222.35,0.00013698,2]
[407199894,1772472640470,-500.0,0.00013698,2]
[407199896,1772472640479,-500.0,0.00013698,2]
[407199898,1772472640489,-500.0,0.00013698,2]
[407199900,1772472640501,-1361.01,0.00013698,2]
[407199902,1772472640510,-500.0,0.00013698,2]
[407199904,1772472640519,-500.0,0.00013698,2]
[407199906,1772472640528,-500.0,0.00013698,2]
[407199908,1772472640537,-500.0,0.00013698,2]
[407199910,1772472640547,-500.0,0.00013698,2]
[407199912,1772472640556,-500.0,0.00013698,2]
[407199914,1772472640565,-500.0,0.00013698,2]
[407199916,1772472640575,-396.36680999,0.00013698,2]
[407199918,1772472640584,-500.0,0.00013698,2]
[407199920,1772472640594,-636.91,0.00013698,2]
[407199922,1772472640603,-500.0,0.00013698,2]
[407199925,1772472640618,-975.38,0.00013698,2]
[407199927,1772472640629,-500.0,0.00013698,2]
[407199928,1772472640639,-500.0,0.00013698,2]
[407199931,1772472640648,-500.0,0.00013698,2]
[407199932,1772472640658,-500.0,0.00013698,2]
[407199935,1772472640667,-1712.01,0.00013698,2]
[407199937,1772472640677,-500.0,0.00013698,2]
[407199939,1772472640686,-500.0,0.00013698,2]
[407199940,1772472640696,-500.0,0.00013698,2]
[407199942,1772472640705,-500.0,0.00013698,2]
[407199944,1772472640715,-500.0,0.00013698,2]
[407199946,1772472640724,-500.0,0.00013698,2]
[407199948,1772472640733,-500.0,0.00013698,2]
[407199950,1772472640743,-639.28,0.00013698,2]
[407199952,1772472640752,-610.35478797,0.00013698,2]
[407199954,1772472640762,-500.0,0.00013698,2]
[407199956,1772472640771,-500.0,0.00013698,2]
[407199958,1772472640781,-752.5,0.00013698,2]
[407199960,1772472640791,-500.0,0.00013698,2]
[407199963,1772472640800,-500.0,0.00013698,2]
[407199965,1772472640810,-1653.02,0.00013698,2]
[407199967,1772472640820,-500.0,0.00013698,2]
[407199969,1772472640829,-942.99,0.00013698,2]
[407199971,1772472640839,-728.82,0.00013698,2]
[407199973,1772472640849,-797.65,0.00013698,2]
[407199975,1772472640858,-1349.79,0.00013698,2]
[407199977,1772472640868,-500.0,0.00013698,2]
[407199979,1772472640878,-584.73,0.00013698,2]
[407199981,1772472640888,-500.0,0.00013698,2]
[407199983,1772472640898,-500.0,0.00013698,2]
[407199985,1772472640907,-563.28,0.00013698,2]
[407199987,1772472640916,-500.0,0.00013698,2]
[407199989,1772472640925,-500.0,0.00013698,2]
[407199991,1772472640934,-542.72,0.00013698,2]
[407199993,1772472640946,-1144.15,0.00013698,2]
[407199995,1772472640956,-2158.82,0.00013698,2]
[407199997,1772472640965,-500.0,0.00013698,2]
[407199999,1772472640975,-556.25,0.00013698,2]
[407200001,1772472640984,-500.0,0.00013698,2]
[407200003,1772472640994,-500.0,0.00013698,2]
[407200005,1772472641003,-1098.8,0.00013698,2]
[407200007,1772472641012,-500.0,0.00013698,2]
[407200009,1772472641022,-500.0,0.00013698,2]
[407200011,1772472641032,-500.0,0.00013698,2]
[407200013,1772472641041,-500.0,0.00013698,2]
[407200015,1772472641050,-500.0,0.00013698,2]
[407200017,1772472641059,-500.0,0.00013698,2]
[407200019,1772472641070,-500.0,0.00013698,2]
[407200021,1772472641083,-500.0,0.00013698,2]
[407200023,1772472641093,-500.0,0.00013698,2]
[407200025,1772472641102,-500.0,0.00013698,2]
[407200027,1772472641113,-500.0,0.00013698,2]
[407200029,1772472641123,-500.0,0.00013698,2]
[407200031,1772472641132,-500.0,0.00013698,2]
[407200033,1772472641141,-500.0,0.00013698,2]
[407200035,1772472641153,-473.70252723,0.00013698,2]
[407200037,1772472641163,-500.0,0.00013698,2]
[407200039,1772472641174,-500.0,0.00013698,2]
[407200041,1772472641184,-500.0,0.00013698,2]
[407200043,1772472641194,-977.83,0.00013698,2]
[407200045,1772472641203,-1026.86,0.00013698,2]
[407200047,1772472641212,-2090.12,0.00013698,2]
[407200049,1772472641221,-500.0,0.00013698,2]
[407200051,1772472641231,-500.0,0.00013698,2]
[407200053,1772472641240,-324.28271671,0.00013698,2]
[407200055,1772472641251,-564.29,0.00013698,2]
[407200058,1772472641260,-500.0,0.00013698,2]
[407200060,1772472641270,-500.0,0.00013698,2]
[407200062,1772472641279,-511.07,0.00013698,2]
[407200064,1772472641289,-500.5793995,0.00013698,2]
[407200066,1772472641299,-881.17,0.00013698,2]
[407200068,1772472641309,-1248.6,0.00013698,2]
[407200070,1772472641319,-558.43328686,0.00013698,2]
[407200072,1772472641329,-500.0,0.00013698,2]
[407200074,1772472641339,-3648.53,0.00013698,2]
[407200075,1772472641348,-1071.08,0.00013698,2]
[407200077,1772472641358,-500.0,0.00013698,2]
[407200080,1772472641367,-1163.39,0.00013698,2]
[407200082,1772472641377,-500.0,0.00013698,2]
[407200083,1772472641386,-500.0,0.00013698,2]
[407200085,1772472641395,-738.33,0.00013698,2]
[407200087,1772472641404,-500.0,0.00013698,2]
[407200089,1772472641413,-1369.44,0.00013698,2]
[407200091,1772472641423,-588.87,0.00013698,2]
[407200093,1772472641432,-500.0,0.00013698,2]
[407200095,1772472641442,-500.0,0.00013698,2]
[407200097,1772472641451,-500.0,0.00013698,2]
[407200099,1772472641459,-500.0,0.00013698,2]
[407200101,1772472641469,-550.94,0.00013698,2]
[407200103,1772472641478,-500.0,0.00013698,2]
[407200105,1772472641487,-2300.95,0.00013698,2]
[407200107,1772472641496,-608.77,0.00013698,2]
[407200109,1772472641507,-500.0,0.00013698,2]
[407200111,1772472641517,-290.83523103,0.00013698,2]
[407200113,1772472641526,-500.0,0.00013698,2]
[407200115,1772472641535,-500.0,0.00013698,2]
[407200117,1772472641545,-500.0,0.00013698,2]
[407200119,1772472641555,-500.0,0.00013698,2]
[407200121,1772472641564,-500.0,0.00013698,2]
[407200123,1772472641573,-500.0,0.00013698,2]
[407200125,1772472641583,-500.0,0.00013698,2]
[407200127,1772472641592,-500.0,0.00013698,2]
[407200129,1772472641601,-500.0,0.00013698,2]
[407200131,1772472641611,-500.0,0.00013698,2]
[407200134,1772472641622,-1887.59,0.00013698,2]
[407200135,1772472641631,-259.07194778,0.00013698,2]
[407200137,1772472641642,-500.0,0.00013698,2]
[407200139,1772472641651,-500.0,0.00013698,2]
[407200141,1772472641659,-249.88331261,0.00013698,2]
[407200143,1772472641669,-500.0,0.00013698,2]
[407200145,1772472641678,-500.0,0.00013698,2]
[407200147,1772472641687,-449.78996269,0.00013698,2]
[407200149,1772472641696,-500.0,0.00013698,2]
[407200151,1772472641707,-1234.52,0.00013698,2]
[407200153,1772472641716,-585.25,0.00013698,2]
[407200156,1772472641727,-500.0,0.00013698,2]
[407200158,1772472641736,-500.0,0.00013698,2]
[407200160,1772472641747,-902.78,0.00013698,2]
[407200162,1772472641756,-500.0,0.00013698,2]
[407200164,1772472641765,-500.0,0.00013698,2]
[407200166,1772472641775,-500.0,0.00013698,2]
[407200168,1772472641785,-500.0,0.00013698,2]
[407200170,1772472641794,-500.0,0.00013698,2]
[407200172,1772472641803,-919.05,0.00013698,2]
[407200174,1772472641813,-500.0,0.00013698,2]
[407200176,1772472641822,-1699.69,0.00013698,2]
[407200178,1772472641831,-500.0,0.00013698,2]
[407200180,1772472641840,-500.0,0.00013698,2]
[407200181,1772472641849,-500.0,0.00013698,2]
[407200183,1772472641858,-2845.74,0.00013698,2]
[407200185,1772472641868,-754.28,0.00013698,2]
[407200187,1772472641877,-642.88,0.00013698,2]
[407200189,1772472641886,-508.78,0.00013698,2]
[407200191,1772472641896,-500.0,0.00013698,2]
[407200193,1772472641906,-500.0,0.00013698,2]
[407200196,1772472641916,-854.8,0.00013698,2]
[407200198,1772472641926,-1190.47,0.00013698,2]
[407200200,1772472641935,-1319.39,0.00013698,2]
[407200202,1772472641945,-500.0,0.00013698,2]
[407200204,1772472641954,-500.0,0.00013698,2]
[407200206,1772472641964,-1131.13,0.00013698,2]
[407200208,1772472641974,-500.0,0.00013698,2]
[407200210,1772472641983,-500.0,0.00013698,2]
[407200212,1772472641992,-2391.92,0.00013698,2]
[407200214,1772472642001,-1518.29,0.00013698,2]
[407200216,1772472642010,-578.28,0.00013698,2]
[407200218,1772472642020,-1457.15,0.00013698,2]
[407200220,1772472642028,-500.0,0.00013698,2]
[407200222,1772472642038,-500.0,0.00013698,2]
[407200224,1772472642048,-500.0,0.00013698,2]
[407200226,1772472642057,-680.16,0.00013698,2]
[407200228,1772472642067,-500.0,0.00013698,2]
[407200230,1772472642080,-1494.94,0.00013698,2]
[407200232,1772472642089,-1610.33,0.00013698,2]
[407200233,1772472642098,-941.8,0.00013698,2]
[407200235,1772472642107,-4585.67,0.00013698,2]
[407200238,1772472642119,-1160.77,0.00013698,2]
[407200240,1772472642129,-500.0,0.00013698,2]
[407200242,1772472642140,-539.73,0.00013698,2]
[407200244,1772472642151,-761.29,0.00013698,2]
[407200246,1772472642161,-500.0,0.00013698,2]
[407200248,1772472642171,-500.0,0.00013698,2]
[407200250,1772472642180,-500.0,0.00013698,2]
[407200252,1772472642189,-500.0,0.00013698,2]
[407200254,1772472642199,-500.0,0.00013698,2]
[407200256,1772472642209,-500.0,0.00013698,2]
[407200258,1772472642219,-500.0,0.00013698,2]
[407200260,1772472642229,-500.0,0.00013698,2]
[407200262,1772472642238,-500.0,0.00013698,2]
[407200264,1772472642248,-500.0,0.00013698,2]
[407200266,1772472642257,-508.32304441,0.00013698,2]
[407200268,1772472642267,-631.79,0.00013698,2]
[407200270,1772472642276,-500.0,0.00013698,2]
[407200272,1772472642286,-500.0,0.00013698,2]
[407200274,1772472642295,-2152.9,0.00013698,2]
[407200276,1772472642305,-1863.1,0.00013698,2]
[407200278,1772472642314,-2806.98,0.00013698,2]
[407200280,1772472642324,-853.94,0.00013698,2]
[407200282,1772472642333,-2728.47,0.00013698,2]
[407200284,1772472642342,-500.0,0.00013698,2]
[407200286,1772472642352,-500.0,0.00013698,2]
[407200288,1772472642362,-2837.22,0.00013698,2]
[407200290,1772472642372,-3041.63,0.00013698,2]
[407200293,1772472642382,-500.0,0.00013698,2]
[407200295,1772472642393,-593.56,0.00013698,2]
[407200297,1772472642402,-611.42,0.00013698,2]
[407200299,1772472642412,-504.78899347,0.00013698,2]
[407200301,1772472642421,-500.0,0.00013698,2]
[407200303,1772472642430,-500.0,0.00013698,2]
[407200305,1772472642439,-500.0,0.00013698,2]
[407200307,1772472642448,-500.0,0.00013698,2]
[407200309,1772472642457,-287.63532681,0.00013698,2]
[407200310,1772472642467,-500.0,0.00013698,2]
[407200312,1772472642476,-500.0,0.00013698,2]
[407200314,1772472642486,-518.3159605,0.00013698,2]
[407200317,1772472642503,-500.0,0.00013698,2]
[407200319,1772472642513,-500.0,0.00013698,2]
[407200321,1772472642524,-500.0,0.00013698,2]
[407200323,1772472642533,-972.84,0.00013698,2]
[407200325,1772472642543,-500.0,0.00013698,2]
[407200327,1772472642552,-836.9,0.00013698,2]
[407200329,1772472642561,-569.48576362,0.00013698,2]
[407200331,1772472642571,-500.0,0.00013698,2]
[407200333,1772472642580,-500.0,0.00013698,2]
[407200335,1772472642590,-500.0,0.00013698,2]
[407200337,1772472642599,-567.93,0.00013698,2]
[407200339,1772472642608,-1648.98,0.00013698,2]
[407200341,1772472642618,-762.6,0.00013698,2]
[407200343,1772472642627,-752.0,0.00013698,2]
[407200345,1772472642637,-500.0,0.00013698,2]
[407200347,1772472642646,-500.0,0.00013698,2]
[407200349,1772472642656,-500.0,0.00013698,2]
[407200351,1772472642665,-500.0,0.00013698,2]
[407200353,1772472642675,-368.98381874,0.00013698,2]
[407200355,1772472642687,-1879.0,0.00013698,2]
[407200357,1772472642696,-1836.25,0.00013698,2]
[407200359,1772472642705,-500.0,0.00013698,2]
[407200361,1772472642715,-500.0,0.00013698,2]
[407200363,1772472642724,-576.4,0.00013698,2]
[407200365,1772472642734,-500.0,0.00013698,2]
[407200367,1772472642744,-672.95,0.00013698,2]
[407200369,1772472642754,-500.0,0.00013698,2]
[407200371,1772472642764,-500.0,0.00013698,2]
[407200373,1772472642773,-500.0,0.00013698,2]
[407200375,1772472642783,-154.46,0.00013698,2]
[407200376,1772472642794,-324.3955277,0.00013698,2]
[407200378,1772472642804,-820.94,0.00013698,2]
[407200381,1772472642814,-500.0,0.00013698,2]
[407200382,1772472642823,-583.91194985,0.00013698,2]
[407200384,1772472642832,-500.0,0.00013698,2]
[407200386,1772472642842,-1038.06568863,0.00013698,2]
[407200388,1772472642851,-811.51,0.00013698,2]
[407200390,1772472642862,-631.58,0.00013698,2]
[407200391,1772472642872,-1226.58,0.00013698,2]
[407200392,1772472642882,-193.08376861,0.00013698,2]
[407200393,1772472642895,-500.0,0.00013698,2]
[407200394,1772472642905,-601.12,0.00013698,2]
[407200395,1772472642915,-500.0,0.00013698,2]
[407200396,1772472642925,-500.0,0.00013698,2]
[407200397,1772472642935,-500.0,0.00013698,2]
[407200398,1772472642946,-500.0,0.00013698,2]
[407200399,1772472642957,-500.0,0.00013698,2]
[407200400,1772472642970,-604.04,0.00013698,2]
[407200401,1772472642981,-500.0,0.00013698,2]
[407200402,1772472642992,-623.42373987,0.00013698,2]
[407200403,1772472643002,-580.09,0.00013698,2]
[407200405,1772472643013,-2308.53,0.00013698,2]
[407200406,1772472643023,-500.0,0.00013698,2]
[407200407,1772472643033,-1730.55,0.00013698,2]
[407200408,1772472643043,-628.06,0.00013698,2]
[407200409,1772472643054,-500.0,0.00013698,2]
[407200410,1772472643067,-1026.74,0.00013698,2]
[407200412,1772472643081,-2129.26,0.00013698,2]
[407200414,1772472643091,-2192.36,0.00013698,2]
[407200416,1772472643101,-1095.99,0.00013698,2]
[407200417,1772472643110,-630.4,0.00013698,2]
[407200419,1772472643122,-500.0,0.00013698,2]
[407200421,1772472643132,-500.0,0.00013698,2]
[407200423,1772472643147,-500.0,0.00013698,2]
[407200425,1772472643157,-500.0,0.00013698,2]
[407200427,1772472643166,-7774.4,0.00013698,2]
[407200429,1772472643176,-500.0,0.00013698,2]
[407200431,1772472643187,-500.0,0.00013698,2]
[407200433,1772472643196,-500.0,0.00013698,2]
[407200435,1772472643207,-690.94,0.00013698,2]
[407200437,1772472643218,-500.0,0.00013698,2]
[407200439,1772472643228,-500.0,0.00013698,2]
[407200441,1772472643238,-1261.39,0.00013698,2]
[407200442,1772472643248,-500.0,0.00013698,2]
[407200444,1772472643258,-956.46,0.00013698,2]
[407200446,1772472643270,-1631.67,0.00013698,2]
[407200449,1772472643281,-500.0,0.00013698,2]
[407200451,1772472643292,-1335.09,0.00013698,2]
[407200474,1772472643510,-500.0,0.00013698,2]
[407200476,1772472643521,-781.87,0.00013698,2]
[407200478,1772472643531,-574.8,0.00013698,2]
[407200480,1772472643541,-514.99889428,0.00013698,2]
[407200482,1772472643551,-1072.61,0.00013698,2]
[407200484,1772472643560,-500.0,0.00013698,2]
[407200486,1772472643570,-500.0,0.00013698,2]
[407200488,1772472643580,-500.0,0.00013698,2]
[407200490,1772472643590,-500.0,0.00013698,2]
[407200492,1772472643600,-500.0,0.00013698,2]
[407200494,1772472643609,-500.0,0.00013698,2]
[407200496,1772472643619,-500.0,0.00013698,2]
[407200498,1772472643628,-1253.29,0.00013698,2]
[407200499,1772472643638,-500.0,0.00013698,2]
[407200502,1772472643648,-959.87,0.00013698,2]
[407200503,1772472643657,-500.0,0.00013698,2]
[407200505,1772472643667,-644.93,0.00013698,2]
[407200507,1772472643676,-500.0,0.00013698,2]
[407200509,1772472643686,-500.0,0.00013698,2]
[407200511,1772472643696,-690.21,0.00013698,2]
[407200513,1772472643705,-500.0,0.00013698,2]
[407200515,1772472643714,-500.0,0.00013698,2]
[407200518,1772472643724,-500.0,0.00013698,2]
[407200520,1772472643734,-500.0,0.00013698,2]
[407200522,1772472643744,-500.0,0.00013698,2]
[407200524,1772472643752,-1262.82,0.00013698,2]
[407200526,1772472643762,-500.0,0.00013698,2]
[407200528,1772472643772,-500.0,0.00013698,2]
[407200530,1772472643782,-500.0,0.00013698,2]
[407200532,1772472643791,-5503.33,0.00013698,2]
[407200535,1772472643802,-500.0,0.00013698,2]
[407200536,1772472643823,-500.0,0.00013698,2]
[407200539,1772472643832,-3258.28,0.00013698,2]
[407200540,1772472643843,-500.0,0.00013698,2]
[407200542,1772472643854,-1334.6,0.00013698,2]
[407200544,1772472643864,-154.14872995,0.00013698,2]
[407200546,1772472643875,-500.0,0.00013698,2]
[407200548,1772472643886,-1074.91,0.00013698,2]
[407200550,1772472643899,-2641.07,0.00013698,2]
[407200552,1772472643908,-560.19096849,0.00013698,2]
[407200554,1772472643918,-666.3,0.00013698,2]
[407200556,1772472643930,-1165.03,0.00013698,2]
[407200558,1772472643941,-500.0,0.00013698,2]
[407200560,1772472643951,-506.62,0.00013698,2]
[407200562,1772472643960,-500.0,0.00013698,2]
[407200564,1772472643971,-500.0,0.00013698,2]
[407200566,1772472643980,-500.0,0.00013698,2]
[407200568,1772472643990,-500.0,0.00013698,2]
[407200570,1772472644000,-500.0,0.00013698,2]
[407200572,1772472644009,-500.0,0.00013698,2]
[407200574,1772472644019,-679.21,0.00013698,2]
[407200576,1772472644028,-520.41,0.00013698,2]
[407200578,1772472644037,-515.4,0.00013698,2]
[407200580,1772472644048,-1393.28,0.00013698,2]
[407200582,1772472644058,-7372.95,0.00013698,2]
[407200584,1772472644067,-500.0,0.00013698,2]
[407200586,1772472644079,-500.0,0.00013698,2]
[407200588,1772472644088,-500.0,0.00013698,2]
[407200590,1772472644098,-500.0,0.00013698,2]
[407200592,1772472644108,-512.85,0.00013698,2]
[407200594,1772472644119,-500.0,0.00013698,2]
[407200596,1772472644129,-500.0,0.00013698,2]
[407200598,1772472644140,-500.0,0.00013698,2]
[407200600,1772472644152,-3472.82,0.00013698,2]
[407200602,1772472644162,-500.0,0.00013698,2]
[407200604,1772472644172,-500.0,0.00013698,2]
[407200606,1772472644183,-1034.55,0.00013698,2]
[407200608,1772472644193,-1925.83,0.00013698,2]
[407200609,1772472644204,-500.0,0.00013698,2]
[407200611,1772472644214,-500.0,0.00013698,2]
[407200613,1772472644224,-1138.25,0.00013698,2]
[407200615,1772472644233,-576.78218232,0.00013698,2]
[407200617,1772472644242,-500.0,0.00013698,2]
[407200619,1772472644251,-500.0,0.00013698,2]
[407200621,1772472644261,-500.0,0.00013698,2]
[407200623,1772472644271,-564.33837727,0.00013698,2]
[407200625,1772472644280,-722.72,0.00013698,2]
[407200627,1772472644291,-500.0,0.00013698,2]
[407200629,1772472644300,-500.0,0.00013698,2]
[407200631,1772472644310,-500.0,0.00013698,2]
[407200633,1772472644319,-1226.04,0.00013698,2]
[407200635,1772472644329,-839.67,0.00013698,2]
[407200637,1772472644338,-1589.61,0.00013698,2]
[407200639,1772472644347,-500.0,0.00013698,2]
[407200641,1772472644357,-500.0,0.00013698,2]
[407200643,1772472644366,-500.0,0.00013698,2]
[407200645,1772472644375,-1496.89,0.00013698,2]
[407200647,1772472644384,-500.0,0.00013698,2]
[407200649,1772472644396,-500.0,0.00013698,2]
[407200651,1772472644405,-500.0,0.00013698,2]
[407200652,1772472644415,-595.06,0.00013698,2]
[407200655,1772472644424,-659.4,0.00013698,2]
[407200656,1772472644433,-500.0,0.00013698,2]
[407200658,1772472644442,-500.0,0.00013698,2]
[407200660,1772472644452,-1211.24,0.00013698,2]
[407200662,1772472644461,-500.0,0.00013698,2]
[407200664,1772472644471,-2192.3,0.00013698,2]
[407200666,1772472644481,-958.72,0.00013698,2]
[407200668,1772472644492,-854.89,0.00013698,2]
[407200671,1772472644503,-500.0,0.00013698,2]
[407200673,1772472644512,-1148.5,0.00013698,2]
[407200674,1772472644523,-799.62660034,0.00013698,2]
[407200676,1772472644532,-500.0,0.00013698,2]
[407200678,1772472644542,-500.0,0.00013698,2]
[407200681,1772472644551,-500.0,0.00013698,2]
[407200683,1772472644561,-500.0,0.00013698,2]
[407200685,1772472644571,-500.0,0.00013698,2]
[407200686,1772472644580,-500.0,0.00013698,2]
[407200688,1772472644590,-313.90266726,0.00013698,2]
[407200690,1772472644600,-501.11,0.00013698,2]
[407200692,1772472644609,-500.0,0.00013698,2]
[407200694,1772472644619,-540.2,0.00013698,2]
[407200696,1772472644629,-438.91147414,0.00013698,2]
[407200698,1772472644638,-1171.19,0.00013698,2]
[407200700,1772472644648,-500.0,0.00013698,2]
[407200702,1772472644657,-2083.83,0.00013698,2]
[407200704,1772472644667,-1000.0,0.00013698,2]
[407200706,1772472644676,-505.32378446,0.00013698,2]
[407200709,1772472644686,-1798.59,0.00013698,2]
[407200711,1772472644696,-500.0,0.00013698,2]
[407200712,1772472644705,-1150.27,0.00013698,2]
[407200714,1772472644714,-500.0,0.00013698,2]
[407200716,1772472644724,-500.0,0.00013698,2]
[407200718,1772472644733,-1572.89,0.00013698,2]
[407200720,1772472644743,-500.0,0.00013698,2]
[407200722,1772472644752,-1601.49,0.00013698,2]
[407200724,1772472644761,-500.0,0.00013698,2]
[407200726,1772472644770,-500.0,0.00013698,2]
[407200728,1772472644780,-500.0,0.00013698,2]
[407200730,1772472644789,-500.0,0.00013698,2]
[407200732,1772472644798,-162.87543955,0.00013698,2]
[407200734,1772472644808,-500.0,0.00013698,2]
[407200736,1772472644818,-1429.8,0.00013698,2]
[407200738,1772472644827,-500.0,0.00013698,2]
[407200740,1772472644837,-500.0,0.00013698,2]
[407200742,1772472644847,-635.42,0.00013698,2]
[407200744,1772472644856,-1237.55,0.00013698,2]
[407200746,1772472644866,-599.14409353,0.00013698,2]
[407200749,1772472644877,-500.0,0.00013698,2]
[407200750,1772472644886,-500.0,0.00013698,2]
[407200752,1772472644896,-500.0,0.00013698,2]
[407200754,1772472644906,-500.0,0.00013698,2]
[407200756,1772472644916,-1108.14,0.00013698,2]
[407200759,1772472644928,-500.0,0.00013698,2]
[407200760,1772472644938,-1644.08,0.00013698,2]
[407200762,1772472644947,-555.67908752,0.00013698,2]
[407200764,1772472644957,-500.0,0.00013698,2]
[407200766,1772472644968,-500.0,0.00013698,2]
[407200768,1772472644977,-500.0,0.00013698,2]
[407200770,1772472644987,-500.0,0.00013698,2]